Cogmind - Beta 13 @@@ ROGUE MODE // 2024.03.31 @ 16:27:04 Player: Atsu Result: Destroyed by Z-Imprinter with Zionite Laser-M Performance ------------- Evolutions (1) 500 Regions Visited (6) 1200 Robots Destroyed (39) 195 Value Destroyed (959) 959 Prototype IDs (0) 0 Alien Tech Used (0) 0 Bonus (97) 97 TOTAL SCORE: 2951 Bonus ------- High Alert Combat Kills 97 Cogmind --------- Core Integrity 0/400 Matter 300/300 Energy 246/250 System Corruption 0% Temperature Cool (10) Movement Walking (130) Location -7/Deep Caves Parts ------- > --- POWER (3) -------- Ion Engine > --- PROPULSION (2) --- Improved Titanium Leg > --- UTILITY (2) ------ Melee Analysis Suite Weapon Cycler > --- WEAPON (2) ------- Katana Great Axe > --- INVENTORY (5) ---- Large Storage Unit Experimental Sensor Array Makeshift ECM Suite Ripper Phasing Sabre Peak State ------------ > --- POWER ------------ Ion Engine Ion Engine > --- PROPULSION ------- Aluminum Leg Improved Titanium Leg > --- UTILITY ---------- Melee Analysis Suite Weapon Cycler > --- WEAPON ----------- Katana Great Axe > --- INVENTORY -------- Large Storage Unit Experimental Sensor Array Makeshift ECM Suite Ripper Phasing Sabre [Rating: 23] Favorites ----------- Power Ion Engine Engine Ion Engine Propulsion Aluminum Leg Treads Light Treads Leg Aluminum Leg Flight Unit Flight Unit Utility Hardened Light Armor Plating Device Seismic Detector Storage Small Matter Pod Processor Melee Analysis Suite Protection Hardened Light Armor Plating Weapon Katana Energy Gun EM Pulse Gun Ballistic Gun Assault Rifle Launcher Grenade Launcher Impact Weapon Flail Slashing Weapon Katana Special Melee Weapon Datajack Build | -11 -10 -10 -9 -9 -7 -7 ------- Run | Yrd Mat Min Mat Min Zio Dee Slots Evolved 2 | . . . 2 . . . Power 2 | . . . 2 . . . Propulsion . | . . . . . . . Utility . | . . . . . . . Weapon . | . . . . . . . Parts Attached 40 | 7 4 1 23 . 5 . Power 7 | 1 . . 6 . . . Engine 7 | 1 . . 6 . . . Core . | . . . . . . . Reactor . | . . . . . . . Propulsion 8 | 2 1 . 4 . 1 . Treads 1 | . . . 1 . . . Leg 6 | 2 1 . 2 . 1 . Wheel . | . . . . . . . Hover . | . . . . . . . Flight 1 | . . . 1 . . . Utility 9 | 2 2 . 2 . 3 . Device 4 | 1 1 . . . 2 . Storage 1 | 1 . . . . . . Processor 1 | . . . . . 1 . Hackware . | . . . . . . . Protection 3 | . 1 . 2 . . . Artifact . | . . . . . . . Weapon 16 | 2 1 1 11 . 1 . Energy Gun 1 | 1 . . . . . . Energy Cannon . | . . . . . . . Ballistic Gun 5 | 1 . . 4 . . . Ballistic Cannon . | . . . . . . . Launcher 4 | . 1 1 2 . . . Special Weapon . | . . . . . . . Impact Weapon 3 | . . . 3 . . . Slashing Weapon 2 | . . . 1 . 1 . Piercing Weapon . | . . . . . . . Special Melee Weapon 1 | . . . 1 . . . Unidentified Prototypes . | . . . . . . . Parts Lost 10 | . . . 8 . . 2 Power 6 | . . . 5 . . 1 Propulsion 3 | . . . 2 . . 1 Utility . | . . . . . . . Weapon 1 | . . . 1 . . . Highest Loss Streak 4 | . . . 4 . . 1 To Critical Strikes . | . . . . . . . Average Slot Usage (%) 84 | . 100 100 70 77 85 72 Engine 17 | . 14 14 15 22 22 13 Treads 1 | . . . 4 . . . Leg 18 | . 28 28 8 11 19 15 Device 9 | . 14 14 6 . 7 11 Processor 3 | . . . . . 7 11 Protection 9 | . 9 14 15 22 6 . Ballistic Gun 5 | . 14 14 4 . . . Launcher 4 | . 13 14 4 . . . Impact Weapon 2 | . . . 5 11 2 . Slashing Weapon 10 | . . . 4 11 19 22 Naked Turns . | . . . . . . . Heaviest Build 29 | 9 10 11 29 24 26 17 Greatest Support 30 | 20 20 20 23 10 30 30 Greatest Overweight (x) 2 | . . . 2 2 2 . Average Overweight (x) . | . . . . 2 . . Largest Inventory Capacity 5 | 5 5 5 5 5 5 5 Average Capacity 5 | 5 5 5 5 5 5 5 Most Carried 5 | 5 5 5 5 3 5 5 Average Carried 4 | 2 4 4 4 3 3 5 Final Capacity 5 | 5 5 5 5 5 5 5 Final Carried 5 | 2 3 5 3 3 5 5 Class Distribution -------------------- 55% | Mutant 32% | Derelict-Gladiator 12% | Scavenger-Mutant Dominant Class ---------------- Mutant | -10/Materials Mutant | -10/Mines Scavenger-Mutant | -9/Materials Mutant | -9/Mines Derelict-Gladiator | -7/Zion Derelict-Gladiator | -7/Deep Caves Resources | -11 -10 -10 -9 -9 -7 -7 ----------- Run | Yrd Mat Min Mat Min Zio Dee Matter Collected 1048 | 310 176 . 507 . 55 . Remotely . | . . . . . . . Salvage Created 966 | 80 131 . 710 . . 45 Parts 61 | 5 8 . 48 . . . Haulers Intercepted 1 | . . . 1 . . . Recyclers Shooed 2 | . . . 2 . . . Parts Field Recycled . | . . . . . . . Retrieved Matter . | . . . . . . . Parts Self-Destructed . | . . . . . . . Prevented . | . . . . . . . Kills | -11 -10 -10 -9 -9 -7 -7 ------- Run | Yrd Mat Min Mat Min Zio Dee Combat Hostiles Destroyed 32 | 1 4 . 24 . . 3 Melee 8 | . . . 5 . . 3 Guns 5 | 1 1 . 3 . . . AOE 19 | . 3 . 16 . . . Classes Destroyed 11 | 3 2 . 5 . . 1 Worker 3 | 1 . . 2 . . . Builder 1 | . 1 . . . . . Tunneler 2 | 1 . . 1 . . . Hauler 1 | . . . 1 . . . Recycler 1 | . . . 1 . . . Watcher 2 | . 1 . 1 . . . Swarmer 8 | . . . 8 . . . Grunt 19 | 1 4 . 14 . . . Duelist 1 | . . . 1 . . . Sentry 1 | . . . 1 . . . Assembled 3 | . . . . . . 3 Best Kill Streak 9 | 1 4 . 9 . . 2 Combat Bots Only 7 | 1 2 . 7 . . 2 Max Kills in Single Turn 4 | 1 1 . 4 . . 1 Gunslinging . | . . . . . . . Exploded 3 | . 1 . 3 . . . Melee 1 | . . . 1 . . 1 Uniques/NPCs Destroyed . | . . . . . . . Combat | -11 -10 -10 -9 -9 -7 -7 -------- Run | Yrd Mat Min Mat Min Zio Dee Hostile Shots Fired 148 | 3 9 . 126 . . 10 Missed 37 | 2 2 . 31 . . 2 Damage Taken 1544 | 11 103 . 1308 . . 122 Core 427 | . . . 351 . . 76 Absorbed by Shields . | . . . . . . . Redirected to Shielding 41 | . . . 41 . . . Core Remaining (%) 100 | 100 . 100 . . . . Volleys Fired 52 | 7 12 . 33 . . . Largest 2 | 2 2 . 2 . . . Hottest 60 | 60 50 . 53 . . . Shots Fired 93 | 14 22 . 57 . . . Gun 62 | 14 12 . 36 . . . Cannon . | . . . . . . . Launcher 31 | . 10 . 21 . . . Special . | . . . . . . . Kinetic 55 | 7 12 . 36 . . . Thermal . | . . . . . . . Explosive 31 | . 10 . 21 . . . Electromagnetic 7 | 7 . . . . . . Robot Hit Streak 5 | 3 5 . 4 . . . Robot Miss Streak 4 | 1 4 . 3 . . . Penetration Max . | . . . . . . . Secondary Targets . | . . . . . . . Shots Hit Robots 76 | 8 10 . 53 . . 5 Core Hits 67 | 4 14 . 46 . . 3 Critical Kills . | . . . . . . . Critical Parts Destroyed . | . . . . . . . Critical Strikes 1 | . . . 1 . . . Sever 1 | . . . 1 . . . Melee Attacks 44 | . . . 37 . . 7 Impact 5 | . . . 5 . . . Slashing 39 | . . . 32 . . 7 Piercing . | . . . . . . . Sneak Attacks . | . . . . . . . Combat Hostiles . | . . . . . . . Follow-up Attacks 5 | . . . 5 . . . Damage Inflicted 3249 | 183 390 . 2476 . . 200 Guns 317 | 101 57 . 159 . . . Cannons . | . . . . . . . Explosions 1771 | 82 333 . 1356 . . . Melee 1161 | . . . 961 . . 200 Ramming . | . . . . . . . Kinetic 291 | 75 57 . 159 . . . Thermal 82 | 82 . . . . . . Explosive 1689 | . 333 . 1356 . . . Electromagnetic 26 | 26 . . . . . . Impact 141 | . . . 141 . . . Slashing 1020 | . . . 820 . . 200 Piercing . | . . . . . . . Highest Corruption . | . . . . . . . Average Corruption . | . . . . . . . Corruption Purged . | . . . . . . . Corruption Blocked . | . . . . . . . Overload Shots . | . . . . . . . Overflow Damage 67 | 17 . . 47 . . 3 Projectiles . | . . . . . . . Explosions 60 | 17 . . 43 . . . Melee 7 | . . . 4 . . 3 Knockbacks . | . . . . . . . Impact . | . . . . . . . Kinetic . | . . . . . . . Secondary . | . . . . . . . Self-Inflicted Damage 167 | . 15 . 152 . . . Shots 6 | . 1 . 5 . . . Rammed . | . . . . . . . Targets Rammed . | . . . . . . . Kicked . | . . . . . . . Crushed . | . . . . . . . Highest Temperature 84 | 6 5 . 84 . . . Average Temperature 22 | 6 2 . 24 . . . Received Heat Transfer 651 | 6 48 . 528 . . 69 Siege Activations . | . . . . . . . Robots Corrupted . | . . . . . . . Combat Hostiles . | . . . . . . . Parts Fried . | . . . . . . . Impact Corruptions . | . . . . . . . Robots Melted . | . . . . . . . Combat Hostiles . | . . . . . . . Parts Melted . | . . . . . . . Heat Transferred 100 | 100 . . . . . . Parts Sabotaged . | . . . . . . . Parts Stolen . | . . . . . . . Parts Stripped . | . . . . . . . Power Chain Reactions 1 | 1 . . . . . . Alert | -11 -10 -10 -9 -9 -7 -7 ------- Run | Yrd Mat Min Mat Min Zio Dee Peak Influence 692 | 30 220 7 692 253 . . Initial 253 | . 19 7 2 253 . . Average 243 | 9 126 7 484 253 . . Maximum Alert Level 2 | . 1 . 2 1 . . Low Security (%) 57 | 100 99 100 6 . . . Level 1 12 | . . . 18 100 . . Level 2 29 | . . . 74 . . . Level 3 . | . . . . . . . Level 4 . | . . . . . . . Level 5 . | . . . . . . . High Security . | . . . . . . . Max Security . | . . . . . . . Squads Dispatched 4 | . 1 . 3 . . . Investigation 1 | . . . 1 . . . Extermination . | . . . . . . . Reinforcement 3 | . 1 . 2 . . . Assault . | . . . . . . . Garrison . | . . . . . . . Intercept . | . . . . . . . Searches Triggered . | . . . . . . . Construction Impeded . | . . . . . . . Haulers Reinforced . | . . . . . . . Active Scanning Responses . | . . . . . . . Cargo Convoy Interrupts . | . . . . . . . Stealth | -11 -10 -10 -9 -9 -7 -7 --------- Run | Yrd Mat Min Mat Min Zio Dee Distress Signals 5 | . 1 1 3 . . . Communications Jammed . | . . . . . . . Distress Signals . | . . . . . . . Times Spotted 43 | 1 6 2 30 . . 4 Peak Tracking Total 6 | 1 3 1 6 . . 2 Tactical Retreats 1 | . . . 1 . . . Traps | -11 -10 -10 -9 -9 -7 -7 ------- Run | Yrd Mat Min Mat Min Zio Dee Traps Triggered . | . . . . . . . Indirectly . | . . . . . . . Trap Hack Attempts . | . . . . . . . Triggered . | . . . . . . . Disarmed . | . . . . . . . Reprogrammed . | . . . . . . . Reused . | . . . . . . . Traps Extracted . | . . . . . . . Installed . | . . . . . . . Triggered . | . . . . . . . Machines | -11 -10 -10 -9 -9 -7 -7 ---------- Run | Yrd Mat Min Mat Min Zio Dee Machines Disabled 4 | . . . 4 . . . Max in Single Turn 1 | . . . 1 . . . Machines Repaired . | . . . . . . . Machines Dismantled . | . . . . . . . Machines Sabotaged . | . . . . . . . Overloaded Fab Kills . | . . . . . . . Hacking | -11 -10 -10 -9 -9 -7 -7 --------- Run | Yrd Mat Min Mat Min Zio Dee Machines Accessed 6 | . 3 . 3 . . . Terminals 3 | . 1 . 2 . . . Fabricators . | . . . . . . . Repair Stations . | . . . . . . . Recycling Units 3 | . 2 . 1 . . . Scanalyzers . | . . . . . . . Garrison Access . | . . . . . . . Total Hacks 19 | . 10 . 9 . . . Successful 15 | . 9 . 6 . . . Failed 4 | . 1 . 3 . . . Catastrophic . | . . . . . . . Database Lockouts . | . . . . . . . Manual 11 | . . . . . 11 . Terminals 10 | . 3 . 7 . . . Fabricators . | . . . . . . . Repair Stations . | . . . . . . . Recycling Units 9 | . 7 . 2 . . . Scanalyzers . | . . . . . . . Garrison Access . | . . . . . . . Terminal Hacks 7 | . 3 . 4 . . . Record 3 | . 3 . . . . . Alert Level 1 | . . . 1 . . . Dispatch Records 1 | . . . 1 . . . Registered Components 1 | . . . 1 . . . Zone Layout 1 | . . . 1 . . . Fabricator Hacks . | . . . . . . . Repair Station Hacks . | . . . . . . . Recycling Unit Hacks 8 | . 6 . 2 . . . Recycle Component 2 | . 2 . . . . . Process 2 | . 2 . . . . . Report Inventory 2 | . 1 . 1 . . . Retrieve Components 2 | . 1 . 1 . . . Scanalyzer . | . . . . . . . Garrison Access Hacks . | . . . . . . . Unauthorized Hacks . | . . . . . . . Terminals . | . . . . . . . Fabricators . | . . . . . . . Repair Stations . | . . . . . . . Recycling Units . | . . . . . . . Scanalyzers . | . . . . . . . Garrison Access . | . . . . . . . Data Cores Recovered . | . . . . . . . Used . | . . . . . . . Hacking Detections 6 | . 3 . 3 . . . Full Trace Events 2 | . 1 . 1 . . . Feedback Events . | . . . . . . . Feedback Blocked . | . . . . . . . Robot Schematics Acquired . | . . . . . . . Robots Built . | . . . . . . . Authchips . | . . . . . . . Time . | . . . . . . . Total Robot Build Rating . | . . . . . . . Part Schematics Acquired . | . . . . . . . Parts Built . | . . . . . . . Authchips . | . . . . . . . Time . | . . . . . . . Total Part Build Rating . | . . . . . . . Parts Repaired . | . . . . . . . Time . | . . . . . . . Parts Recycled 2 | . 2 . . . . . Recycled Matter 63 | . 63 . . . . . Retrieved Matter . | . . . . . . . Retrieved Components 15 | . 6 . 9 . . . Parts Scanalyzed . | . . . . . . . Part Schematics Acquired . | . . . . . . . Parts Damaged . | . . . . . . . Bothacking | -11 -10 -10 -9 -9 -7 -7 ------------ Run | Yrd Mat Min Mat Min Zio Dee Used RIF Installer . | . . . . . . . Robots Hacked . | . . . . . . . Non-combat . | . . . . . . . Combat . | . . . . . . . Robot Hacks Applied . | . . . . . . . Relay Couplers Released . | . . . . . . . Fabnet Peak Effective % . | . . . . . . . Robots Rewired . | . . . . . . . Allies Hacked . | . . . . . . . Hacks Repelled . | . . . . . . . Allies | -11 -10 -10 -9 -9 -7 -7 -------- Run | Yrd Mat Min Mat Min Zio Dee Total Allies . | . . . . . . . Largest Group . | . . . . . . . Highest-Rated Group . | . . . . . . . Highest-Rated Ally . | . . . . . . . Total Orders . | . . . . . . . Ally Attacks . | . . . . . . . Total Damage . | . . . . . . . Kills . | . . . . . . . Allies Corrupted . | . . . . . . . Allies Melted . | . . . . . . . Intel | -11 -10 -10 -9 -9 -7 -7 ------- Run | Yrd Mat Min Mat Min Zio Dee Robot Analysis Total . | . . . . . . . Derelict Logs Recovered 3 | . . 1 . . 2 . Drone Launches . | . . . . . . . Drone Recoveries . | . . . . . . . Exploration | -11 -10 -10 -9 -9 -7 -7 ------------- Run | Yrd Mat Min Mat Min Zio Dee Turns Passed 3172 | 160 508 353 746 84 1087 234 Spaces Moved 2009 | 100 380 292 294 33 743 167 Core 32 | 23 . . 9 . . . Treads 152 | . . . 152 . . . Legs 1825 | 77 380 292 133 33 743 167 Wheels . | . . . . . . . Hover . | . . . . . . . Flight . | . . . . . . . Fastest Speed 50 | 50 120 120 100 260 125 125 Average Speed 138 | 103 120 120 170 260 143 128 Slowest Speed 260 | 120 120 120 260 260 260 130 Overloaded Moves . | . . . . . . . Propulsion Burnouts . | . . . . . . . Robots Hopped . | . . . . . . . Cave-ins Triggered . | . . . . . . . Exploration Rate (%) 37 | 6 41 75 36 6 71 25 Regions Visited 6 Branch Regions 4 Pre-discovered Areas 1 | . . 1 . . . . Known Exits Taken . | . . . . . . . Unknown Exits Taken 6 | 1 1 1 1 1 1 . Scrap Searched 3 | . . . . . 3 . Spaces Dug 4 | . . . 4 . . . Terrain Destroyed 254 | . 66 . 188 . . . Melee . | . . . . . . . Projectile . | . . . . . . . AOE 254 | . 66 . 188 . . . Terrain Rammed . | . . . . . . . Walls Destroyed . | . . . . . . . Machines Disabled . | . . . . . . . Actions | -11 -10 -10 -9 -9 -7 -7 --------- Run | Yrd Mat Min Mat Min Zio Dee Total 2262 | 143 409 294 441 32 765 178 Wait 55 | 15 5 . 29 . 1 5 Move 2003 | 99 379 291 293 32 742 167 Hop . | . . . . . . . Pick Up 48 | 12 6 2 18 . 10 . Fast Attach . | . . . . . . . Attach 19 | 7 . . 11 . 1 . Detach 1 | . . . 1 . . . Swap 21 | . 4 1 12 . 4 . Drop 25 | 3 3 . 12 . 7 . Fire 52 | 7 12 . 33 . . . Melee 38 | . . . 32 . . 6 Ram . | . . . . . . . Kick . | . . . . . . . Crush . | . . . . . . . Escape Stasis . | . . . . . . . Rewire . | . . . . . . . Trap . | . . . . . . . Miscellaneous . | . . . . . . . Route ------- -11/Scrapyard -10/Materials -10/Mines (discovered 2 exits: *Mat x2) -9/Materials -9/Mines -7/Zion -7/Deep Caves History --------- Turn | Location | Event 2 | -11/Scrapyard | Met Revision 17 99 | -11/Scrapyard | Discovered new exit (range 8) 161 | -11/Scrapyard | Entered Materials 318 | -10/Materials | Build established: Mutant 352 | -10/Materials | Discovered new exit (range 7) 669 | -10/Materials | Entered Mines 676 | -10/Mines | Received a Rocket Launcher from a helpful Derelict 750 | -10/Mines | Discovered new exit (range 9) 791 | -10/Mines | Discovered new exit (range 15) 851 | -10/Mines | Found a damaged Exp. Sensor Array with a note attached 853 | -10/Mines | Found Prototype Device 952 | -10/Mines | Assembled infested the area 957 | -10/Mines | Assisted by a Guerilla fighting off Assembled 1022 | -10/Mines | Entered Materials 1022 | -9/Materials | Evolved 2 slots: Power x2 1096 | -9/Materials | Destroyed 7 combat bots 1436 | -9/Materials | Discovered new exit (range 16) 1438 | -9/Materials | Lost 4 parts (3p1n) 1515 | -9/Materials | Core integrity fell below 50% 1573 | -9/Materials | Core integrity fell below 20% 1603 | -9/Materials | Build established: Scavenger-Mutant 1768 | -9/Materials | Entered Mines 1772 | -9/Mines | A Derelict revealed a hidden shortcut to a safe place 1852 | -9/Mines | Entered Zion 1985 | -7/Zion | Learned Factory stockpile data 1997 | -7/Zion | Build established: Mutant 2207 | -7/Zion | Received a hallucinogenic algorithm 2351 | -7/Zion | Found CR-A16's Pointy Stick 2446 | -7/Zion | Build established: Derelict-Gladiator 2494 | -7/Zion | Learned Factory garrison access intel 2755 | -7/Zion | Acquired unknown access codes intercepted by a Zionite 2909 | -7/Zion | Opened final containment barrier to the Deep Caves 2937 | -7/Zion | Discovered new exit (range 3) 2937 | -7/Zion | Saw the warning signs outside the Deep Caves entrance 2939 | -7/Zion | Entered Deep Caves 3173 | -7/Deep Caves | Attacked by Z-Imprinter 3173 | -7/Deep Caves | Destroyed by Z-Imprinter with Zionite Laser-M Last Messages --------------- various forms. [Achievement: Signs Are For Wimps] [Achievement: Adventurer] LOCATION=UNKNOWN GOAL=ESCAPE as-86168 destroyed. Ion Engine destroyed. as-12092 destroyed. Aluminum Leg destroyed. Destroyed Asb. Hover Unit. as-60784 destroyed. NEW_ZION: Z-Facility proximity alert. Z-Imprinter: GET AWAY FROM HERE! I've worked too hard for our future just to have you ruin everything! [Achievement: First Step to Greatness] The achievement interface (ESC then open Records) offers an effective way to explore all of your earned achievements as well as seek out new goals for future runs. Map ----- +----------------------------------------------------+ | | | | | | | | | | | | | | | ?????????????????????????????????????????????????? | | ?????????????????????????????????????????????????? | | ??????????????????????? #???????????????????????? | | ????????????????????? ?????###???????????????? | | ?????????????????? ###### ##?????######???? | | ????????????????? ## # #???### ##??? | | ????????????????? ##### #??? | | ???????????????? #??? | | ????????????????? #??? | | ?????????????????? #???? | | ??????????????????? #???? | | ??????????????????"""" ##??? | | ?????????????????""""" #### | | ????????????????"""""" | | ????????????????"""""" | | ????????????????""" | | ?????????????????""""" I ## | | ?????????????????""""" ###? | | ?????????????????""""" @ ##??? | | ?????????????????""""" #???? | | ????????????????" " " #???? | | ????????????????""o o #??? | | ???????????????"" #??? | | ???????????????"""o #??? | | ???????????????""" ##??? | | ???????????????""""" #???? | | ????????????????""""""o ???? | | ????????????????? #??? | | ????????????????? """ ##??? | | ????????????????????"" #????? | | ????????????????????""" ???????? | | ?????????????????????"" ??????????????? | | ??????????????????????" ???????????????????? | | ??????????????????????? ?????????????????????? | | ?????????????????????????????????????????????????? | | ?????????????????????????????????????????????????? | | ?????????????????????????????????????????????????? | | ?????????????????????????????????????????????????? | | ?????????????????????????????????????????????????? | | ?????????????????????????????????????????????????? | | ?????????????????????????????????????????????????? | | ?????????????????????????????????????????????????? | | ?????????????????????????????????????????????????? | +----------------------------------------------------+ Best States ------------- Heat Dissipation 28 Energy Generation 20 Energy Capacity 550 Matter Stores 350 Matter Capacity 350 Sight Range 16 Terrain Scan Density 10 ECM Strength 2 Armor Coverage 300 Power Shielding 33 Weapon Cycling 15 Evasion (%) 55 Melee Accuracy 5 Recoil Reduction 1 Item Schematics ----------------- None Robot Schematics ------------------ None Fabricated ------------ Nothing Alien Tech Used ----------------- None Achievements -------------- Adventurer First Step to Greatness I Survived The Infestation Loot Pinata One Hack Too Far Remodeling Robot Respite Signs Are For Wimps Tourist Uninvited Guest Challenges ------------ None Game ------ Seed ArcLongswordBattery Manual? 0 Play Time 01:08:04 Cumulative 1.1 hours Start 2024.03.31 @ 09:44:39 End 2024.03.31 @ 16:27:04 Sessions 5 Manual Loads 0 Difficulty Rogue Special Mode None Game No. 1 Rogue 1 Adventurer 0 Explorer 0 Win Type - Total 0 Types 0/0/0/0/0/0/0/0/0 Lore% 2 Gallery% 2 Achievement% 3 Wizard Run 0 Options --------- Layout 1 ASCII 0 Keyboard 0 Movement Mouse Keybinds 0 Fullscreen 1 Font 32/SmallcapsGlow Map View 50x35 Zoom Use 0% Tactical HUD 0 Map Filters NONE Filters NONE Steam 1 RUN: 656a9f1d-73ce-48b5-a6fd-d4a17d801a74